bitfinex/quotes_ETHUSD_20260120
["timestamp","ask_amount","ask_price","bid_price","bid_amount"]
[1768893811061,12.07991404,3124.7,3123.5,11.92110434]
[1768893811356,12.07911364,3124.5,3123.5,11.92110434]
[1768893812663,12.33686101,3124.4,3123.0,15.12307776]
[1768893812824,12.33686101,3124.4,3123.0,15.12308502]
[1768893812825,12.07911364,3124.4,3123.0,15.12308502]
[1768893813441,12.07911364,3124.4,3123.0,15.123081]
[1768893813658,12.07911364,3124.4,3123.0,11.92110434]
[1768893813859,12.07911364,3124.2,3123.1,15.12304273]
[1768893814161,12.07911364,3124.0,3123.1,15.12304273]
[1768893815963,12.07911364,3124.0,3123.1,11.92110434]
[1768893816557,12.07911364,3124.0,3123.1,15.12300013]
[1768893817066,0.521,3124.1,3123.2,11.92110434]
[1768893817243,14.01292165,3124.1,3123.2,11.92110434]
[1768893818568,14.01292165,3124.1,3123.3,11.92110434]
[1768893818770,14.01292165,3124.1,3123.0,11.92110434]
[1768893818969,12.07911364,3124.0,3122.8,11.92110434]
[1768893819458,12.07911364,3124.0,3122.7,11.92190554]
[1768893819660,12.07911364,3123.8,3122.7,11.92190554]
[1768893819964,1.72138658,3123.9,3122.7,11.92190554]
[1768893819965,12.07911364,3123.6,3122.8,11.92110434]
[1768893820765,12.07911364,3123.6,3122.7,0.0008012]
[1768893820766,12.07911364,3123.5,3122.7,0.0008012]
[1768893822874,12.43541901,3123.4,3122.7,0.0008012]
[1768893823183,12.43541901,3123.2,3122.7,0.0008012]
[1768893823488,12.43541901,3123.2,3123.0,0.002]
[1768893823659,12.43541901,3123.2,3122.7,0.0008012]
[1768893826188,0.521,3123.5,3122.8,12.13372141]
[1768893826335,0.521,3123.5,3123.0,12.13372141]
[1768893832652,12.95641901,3123.5,3122.8,12.13372141]
[1768893832984,12.95641901,3123.5,3122.7,0.0008012]
[1768893833185,12.95641901,3123.5,3122.7,12.53514051]
[1768893834244,0.521,3123.5,3122.7,12.53514051]
[1768893834451,0.521,3123.5,3122.9,12.53433931]
[1768893835568,12.26706639,3123.5,3122.9,12.53433931]
[1768893835746,12.26706639,3123.5,3122.7,0.0008012]
[1768893836345,12.26706639,3123.5,3123.0,0.002]
[1768893836543,12.26706639,3123.5,3122.7,0.0008012]
[1768893836783,13.69840701,3123.5,3122.7,0.0008012]
[1768893837486,13.69840701,3123.5,3122.7,12.53514051]
[1768893838486,12.26706639,3123.5,3122.7,12.53514051]
[1768893838784,0.521,3123.5,3122.7,12.53514051]
[1768893839577,0.471,3123.5,3122.8,12.53433931]
[1768893840895,12.21706639,3123.5,3122.8,12.53433931]
[1768893843880,11.74606639,3123.4,3122.7,0.0008012]
[1768893844080,11.74606639,3123.2,3122.7,0.0008012]
[1768893844260,12.26706639,3123.1,3122.7,0.0008012]
[1768893845874,0.521,3123.1,3122.6,12.53633931]
[1768893846075,0.521,3123.1,3122.6,8.65838314]
[1768893846076,12.26706639,3123.1,3122.6,8.65838314]
[1768893846370,0.481,3122.6,3122.3,0.002]
[1768893846577,12.26706639,3122.5,3122.3,0.002]
[1768893847265,0.521,3122.5,3122.2,11.09333931]
[1768893853084,0.521,3122.5,3122.2,10.61233931]
[1768893856292,12.26706639,3122.5,3121.9,12.53433931]
[1768893859716,13.49377303,3122.5,3121.9,12.53433931]
[1768893860017,13.49377303,3122.5,3121.7,12.53633931]
[1768893860843,13.49377303,3122.5,3121.7,0.002]
[1768893860844,11.74606639,3122.4,3121.7,0.002]
[1768893861120,11.74606639,3122.2,3121.5,0.002]
[1768893861284,11.74606639,3122.0,3121.4,0.002]
[1768893861492,11.74606639,3121.8,3121.1,12.53433931]
[1768893861921,11.74606639,3121.8,3120.9,12.53633931]
[1768893862121,11.74606639,3121.8,3121.0,12.53714051]
[1768893863123,1.17460664,3122.1,3121.1,12.76777928]
[1768893863415,0.522,3122.0,3121.1,12.76777928]
[1768893864494,12.25251896,3122.0,3121.1,12.76777928]
[1768893865431,12.25251896,3122.0,3121.2,12.76777928]
[1768893872455,12.25251896,3122.0,3121.1,12.76777928]
[1768893872756,12.25251896,3122.0,3121.0,12.77058048]
[1768893872928,13.79817604,3122.0,3121.0,14.74846772]
[1768893873331,13.79817604,3122.0,3121.1,12.76777928]
[1768893874454,0.001,3121.7,3121.1,12.76777928]
[1768893874658,0.522,3121.6,3121.1,12.76777928]
[1768893874865,0.522,3121.6,3121.1,3.20397796]
[1768893875157,0.522,3121.6,3121.2,13.28624592]
[1768893876746,12.25251896,3121.6,3121.2,12.76777928]
[1768893876921,12.25251896,3121.6,3121.1,12.76777928]
[1768893878281,0.522,3121.6,3121.1,12.76777928]
[1768893878429,0.522,3121.6,3121.2,12.76777928]
[1768893879145,0.522,3121.6,3121.3,12.76777928]
[1768893879349,0.522,3121.6,3121.3,14.3649436]
[1768893880148,0.44298837,3121.6,3121.4,12.76777928]
[1768893880968,0.001,3122.2,3121.6,12.76777928]
[1768893881167,0.522,3121.9,3121.6,12.76777928]
[1768893884079,12.84016736,3121.9,3121.4,12.54815103]
[1768893884675,12.84016736,3121.9,3121.3,16.34815103]
[1768893884994,12.84016736,3121.9,3121.4,12.54815103]
[1768893886175,0.001,3121.6,3121.4,12.54815103]
[1768893887071,0.001,3121.6,3121.5,12.54815103]
[1768893887272,0.522,3121.9,3121.5,12.54815103]
[1768893887476,0.522,3121.9,3121.7,12.54815103]
[1768893888176,0.522,3122.1,3121.8,12.54815103]
[1768893889980,0.522,3122.1,3121.6,14.12333437]
[1768893890183,0.522,3122.5,3121.7,12.54815103]
[1768893890344,12.57740151,3122.4,3121.7,12.54815103]
[1768893890550,12.31816736,3122.4,3121.7,14.34048447]
[1768893891969,12.31816736,3122.4,3121.7,1.79233344]
[1768893892158,12.31816736,3122.4,3121.6,14.12333437]
[1768893898390,12.31816736,3122.4,3121.9,12.98500698]
[1768893898587,0.522,3122.5,3121.9,12.98500698]
[1768893898755,12.62717629,3122.4,3121.9,0.002]
[1768893898956,13.94209392,3122.4,3121.9,0.002]
[1768893899467,12.62717629,3122.4,3121.9,0.002]
[1768893899864,0.522,3122.5,3121.9,12.98500698]
[1768893900593,13.14917629,3122.5,3121.9,12.98500698]
[1768893901485,0.522,3122.5,3121.9,12.98500698]
[1768893902493,13.14917629,3122.5,3121.9,12.98500698]
[1768893903088,0.522,3122.5,3121.9,12.98500698]
[1768893903289,0.522,3122.5,3122.1,12.98300698]
[1768893905406,13.14917629,3122.5,3122.1,12.98300698]
[1768893905963,13.14917629,3122.5,3122.0,1.2985007]
[1768893906272,13.14917629,3122.5,3121.9,0.002]
[1768893907005,12.62717629,3122.3,3121.9,0.002]
[1768893907371,12.62717629,3122.3,3121.5,12.98500698]
[1768893909301,3.72464236,3122.5,3121.5,12.98500698]
[1768893909302,12.62717629,3122.1,3121.5,0.002]
[1768893909598,12.62717629,3121.9,3121.5,0.002]
[1768893910006,12.62717629,3121.9,3121.8,0.002]
[1768893910177,13.94209392,3121.9,3121.5,0.002]
[1768893911609,13.94209392,3121.9,3121.5,12.98500698]
[1768893911904,12.62717629,3121.9,3121.5,12.98500698]
[1768893912287,13.15017629,3122.0,3121.5,12.98500698]
[1768893912482,0.523,3122.0,3121.5,12.98500698]
[1768893912989,13.15017629,3122.0,3121.5,12.98500698]
[1768893913694,0.523,3122.0,3121.5,12.98500698]
[1768893913879,13.15017629,3122.0,3121.5,12.98500698]
[1768893914890,0.523,3122.0,3121.5,12.98500698]
[1768893915278,0.523,3122.0,3121.5,14.60387528]
[1768893916005,0.522,3122.3,3121.6,12.98300698]
[1768893916917,12.62717629,3122.4,3121.6,12.98300698]
[1768893917209,12.62717629,3122.4,3121.6,16.18645294]
[1768893917414,12.62717629,3122.4,3121.8,12.98300698]
[1768893920197,12.62717629,3122.4,3121.6,12.98300698]
[1768893920402,12.62717629,3122.4,3121.6,0.523]
[1768893920911,12.62717629,3122.2,3121.5,13.50800698]
[1768893921392,12.62717629,3122.2,3121.5,15.55918607]
[1768893922015,12.62717629,3122.2,3121.6,12.98300698]
[1768893922207,12.62717629,3122.2,3121.8,0.002]
[1768893922398,12.62817629,3122.1,3121.8,0.002]
[1768893924815,0.001,3122.1,3121.8,0.002]
[1768893925135,0.001,3122.1,3121.8,13.12811606]
[1768893926120,0.522,3122.6,3121.9,11.93265096]
[1768893926325,12.15842121,3122.8,3122.0,11.93265096]
[1768893926512,12.68042121,3123.0,3122.0,11.93265096]
[1768893926830,0.26673401,3122.9,3122.1,11.93265096]
[1768893927119,0.522,3123.0,3122.3,11.93265096]
[1768893927321,0.27445312,3122.9,3122.3,11.93265096]
[1768893927505,12.15842121,3122.8,3122.2,1.09995102]
[1768893927696,12.15842121,3122.8,3122.2,13.03260198]
[1768893930229,0.522,3123.0,3122.2,13.03260198]
[1768893930528,12.43269212,3122.9,3122.2,13.03260198]
[1768893930828,12.15842121,3122.9,3122.2,13.03260198]
[1768893931008,12.68042121,3123.0,3122.4,11.93265096]
[1768893934524,12.68042121,3123.0,3122.2,1.09995102]
[1768893934525,0.001,3122.5,3122.2,1.09995102]
[1768893934734,0.001,3122.5,3122.2,11.93265096]
[1768893935231,0.001,3122.5,3122.2,12.45565096]
[1768893936903,12.15842121,3123.0,3122.3,11.93265096]
[1768893937643,12.15842121,3123.2,3122.3,11.93265096]
[1768893937827,12.15842121,3123.2,3122.5,11.93265096]
[1768893938034,12.68042121,3123.3,3122.5,11.93265096]
[1768893938233,12.15842121,3123.1,3122.5,11.93265096]
[1768893938403,12.15842121,3123.1,3122.4,0.523]
[1768893938599,12.15842121,3123.1,3122.4,12.45565096]
[1768893938817,12.15842121,3122.9,3122.4,12.45565096]
[1768893939130,12.15842121,3123.2,3122.4,12.45565096]
[1768893939734,12.15842121,3123.2,3122.5,11.93265096]
[1768893941231,0.522,3123.3,3122.6,11.93265096]
[1768893941638,12.68042121,3123.3,3122.6,11.93265096]
[1768893941941,12.68042121,3123.3,3122.6,13.49847219]
[1768893943316,12.68042121,3123.3,3122.6,11.93265096]
[1768893944222,12.68042121,3123.3,3122.7,12.0259767]
[1768893944628,12.68042121,3123.3,3122.5,12.0259767]
[1768893945033,12.68042121,3123.3,3122.6,12.0259767]
[1768893946134,0.001,3123.0,3122.6,12.0259767]
[1768893946330,0.001,3123.0,3122.8,12.0259767]
[1768893946731,11.8333417,3123.5,3122.9,12.0259767]
[1768893946936,11.8333417,3123.8,3122.9,12.0259767]
[1768893947337,11.8333417,3123.8,3122.9,12.5489767]
[1768893948243,11.8333417,3123.8,3122.9,14.17725397]
[1768893948943,11.8333417,3123.8,3123.1,12.0259767]
[1768893949946,11.8333417,3123.8,3122.9,1.62827727]
[1768893950143,11.8333417,3123.6,3122.6,3.8]
[1768893950334,11.8333417,3123.4,3122.6,3.8]
[1768893950545,11.8333417,3123.2,3122.6,0.523]
[1768893951043,11.8333417,3123.2,3122.6,12.5489767]
[1768893952318,11.8333417,3123.2,3121.9,3.8]
[1768893952534,11.8333417,3123.2,3122.1,12.0259767]
[1768893952735,11.8333417,3123.0,3122.2,0.523]
[1768893953424,11.8333417,3123.0,3122.1,12.5489767]
[1768893954219,12.51210412,3123.0,3122.1,12.5489767]
[1768893954419,12.51210412,3123.0,3122.3,12.70189323]
[1768893956151,2.14906843,3123.1,3122.4,12.70189323]
[1768893956152,14.66117255,3123.1,3122.4,12.70189323]
[1768893956332,14.66117255,3123.1,3122.4,13.22489323]
[1768893956547,13.07990628,3123.0,3122.4,13.22489323]
[1768893957652,13.07990628,3123.0,3122.5,0.002]
[1768893957964,0.001,3122.7,3122.5,12.70389323]
[1768893958331,0.001,3122.7,3122.5,0.002]
[1768893958551,12.51310412,3122.7,3122.5,0.002]
[1768893959128,13.76441453,3122.7,3122.1,0.002]
[1768893960748,12.51210412,3122.6,3121.8,0.002]
[1768893961761,12.51210412,3122.6,3121.8,12.70389323]
[1768893970771,12.51210412,3122.6,3122.1,0.002]
[1768893970972,13.94074557,3122.5,3122.1,0.002]
[1768893971275,0.001,3122.3,3122.1,0.002]
[1768893972163,12.51310412,3122.3,3122.1,0.002]
[1768893972338,12.51310412,3122.3,3121.8,0.002]
[1768893972965,12.51310412,3122.3,3121.8,12.70389323]
[1768893973870,12.51310412,3122.3,3121.8,0.002]
[1768893974072,13.99115488,3122.3,3121.8,0.002]
[1768893974369,13.99115488,3122.3,3121.5,0.002]
[1768893975367,12.51210412,3122.2,3121.5,0.002]
[1768893979400,12.51210412,3122.2,3121.5,12.70389323]
[1768893979599,12.51210412,3122.0,3121.5,12.70389323]
[1768893981103,1.47905076,3122.3,3121.6,12.70189323]
[1768893981300,0.001,3122.3,3121.6,12.70189323]
[1768893982271,0.001,3122.3,3121.5,13.18350135]
[1768893982272,0.001,3122.3,3121.8,12.70189323]
[1768893982598,0.001,3122.3,3122.0,12.70189323]
[1768893984692,12.04995504,3122.3,3121.8,12.23192667]
[1768893985395,0.001,3122.3,3121.8,12.23192667]
[1768893987711,12.04995504,3122.3,3121.8,12.23192667]
[1768893987913,12.04895504,3122.1,3121.5,0.002]
[1768893988114,12.04895504,3121.9,3121.5,0.002]
[1768893991222,12.04895504,3121.9,3121.1,12.22992667]
[1768893991796,1.96198426,3122.0,3121.1,12.22992667]
[1768893991797,12.04895504,3121.7,3121.1,12.22992667]
[1768893995426,0.522,3121.8,3121.1,12.22992667]
[1768893995752,12.57095504,3121.8,3121.4,0.002]
[1768893995901,1.2570955,3121.7,3121.4,0.002]
[1768893996726,13.30605054,3121.7,3121.4,0.002]
[1768893996942,1.2570955,3121.7,3121.4,0.002]
[1768893997109,12.57095504,3121.8,3121.4,0.002]
[1768894000836,12.57095504,3121.8,3121.4,12.23192667]
[1768894000837,0.522,3121.8,3121.4,12.23192667]
[1768894003938,12.65271838,3122.0,3121.4,12.23192667]
[1768894004302,0.001,3122.0,3121.4,12.23192667]
[1768894004846,0.001,3122.0,3121.5,11.79086921]
[1768894005047,0.001,3122.0,3121.5,13.34292495]
[1768894006629,0.001,3122.0,3121.6,11.79086921]
[1768894007650,0.001,3121.7,3121.6,11.79086921]
[1768894007949,0.001,3122.0,3121.6,11.79086921]
[1768894008441,0.001,3122.3,3121.6,11.79086921]
[1768894008641,0.001,3122.3,3121.8,11.79086921]
[1768894010717,12.65271838,3122.3,3121.8,11.79086921]
[1768894012636,12.65271838,3122.3,3121.6,15.59086921]
[1768894013441,12.65271838,3122.3,3121.7,12.38138594]
[1768894014007,0.001,3122.3,3121.7,12.38138594]
[1768894014207,0.001,3122.3,3121.9,12.38138594]
[1768894015007,0.001,3122.3,3121.9,12.90538594]
[1768894016124,0.001,3122.3,3122.0,12.38138594]
[1768894017139,0.522,3122.8,3122.1,12.38138594]
[1768894017338,0.2747847,3122.7,3122.1,12.38138594]
[1768894017542,12.4640901,3122.8,3122.1,13.61543921]
[1768894017719,12.21685278,3122.7,3122.1,13.61543921]
[1768894018047,11.9420901,3122.7,3122.1,13.61543921]
[1768894018445,11.9420901,3122.7,3122.0,0.524]
[1768894018657,11.9420901,3122.5,3122.0,0.524]
[1768894018944,11.9420901,3122.5,3121.5,12.38138594]
[1768894019150,0.2746521,3122.4,3121.5,12.38138594]
[1768894019320,11.9420901,3122.3,3121.7,12.38138594]
[1768894019521,13.02385354,3122.3,3121.7,12.38138594]
[1768894020267,0.001,3122.0,3121.9,0.002]
[1768894020754,11.9430901,3122.0,3121.9,0.002]
[1768894021931,11.9430901,3122.0,3121.6,12.38138594]
[1768894022332,0.001,3122.0,3121.6,12.38138594]
[1768894024148,12.4640901,3122.4,3121.7,12.38138594]
[1768894027351,0.522,3122.4,3121.7,12.38138594]
[1768894027554,0.522,3122.4,3121.8,12.38138594]
[1768894027867,0.522,3122.8,3122.0,12.38138594]
[1768894028157,0.27466346,3122.7,3122.0,12.38138594]
[1768894028364,11.9420901,3122.7,3122.0,12.38138594]
[1768894032058,11.9420901,3122.7,3121.9,0.524]
[1768894032268,11.9420901,3122.4,3121.9,16.10855456]
[1768894032441,11.9420901,3122.4,3121.9,12.90538594]
[1768894032640,11.9420901,3122.4,3121.9,14.89626161]
[1768894032837,0.001,3122.5,3121.9,14.89626161]
[1768894035461,0.001,3122.5,3122.0,12.38138594]
[1768894038365,11.9420901,3122.8,3122.0,12.38138594]
[1768894038366,0.522,3122.9,3122.1,12.38138594]
[1768894038568,0.27488325,3122.8,3122.1,12.38138594]
[1768894038773,12.4640901,3122.9,3122.3,12.38138594]
[1768894038941,12.21697698,3122.8,3122.3,12.38138594]
[1768894039141,11.9420901,3122.8,3122.3,12.38138594]
[1768894040966,12.4640901,3122.9,3122.3,12.38138594]
[1768894041752,11.9420901,3122.9,3122.3,12.38138594]
[1768894042075,11.9420901,3123.1,3122.3,12.38138594]
[1768894042286,12.21693424,3123.0,3122.3,12.38138594]
[1768894042459,11.9420901,3123.0,3122.3,12.38138594]
[1768894044584,0.001,3122.7,3122.3,12.38138594]
[1768894047978,0.001,3122.7,3122.4,12.38890514]
[1768894049244,12.20250468,3123.3,3122.4,12.38890514]
[1768894049502,12.20250468,3123.3,3122.4,14.00020222]
[1768894049777,12.20250468,3123.3,3122.5,12.38890514]
[1768894049945,12.20250468,3123.3,3122.7,12.38890514]
[1768894050787,12.20250468,3123.3,3122.6,0.524]
[1768894051144,12.20250468,3123.3,3122.6,12.91290514]
[1768894051957,12.20250468,3123.1,3122.5,0.524]
[1768894052555,12.20250468,3123.1,3122.5,12.91290514]
[1768894054561,13.47495515,3123.3,3122.5,12.91290514]
[1768894054758,13.47495515,3123.3,3122.4,3.20259056]
[1768894054759,13.47495515,3123.3,3122.7,12.38890514]
[1768894056265,0.001,3122.8,3122.7,12.38890514]
[1768894056576,0.001,3122.8,3122.7,13.68019565]
[1768894060173,0.001,3122.8,3122.7,1.29129051]
[1768894060480,0.001,3122.8,3122.6,12.91290514]
[1768894068591,12.54636768,3123.4,3122.7,12.7502414]
[1768894069007,0.522,3123.8,3122.7,12.7502414]
[1768894069008,12.54636768,3123.7,3122.7,12.7502414]
[1768894069392,0.522,3123.8,3122.7,19.52378618]
[1768894069692,0.27471437,3123.7,3123.1,12.7502414]
[1768894069880,13.06836768,3123.8,3123.1,13.2742414]
[1768894070072,0.27471805,3123.7,3123.1,13.2742414]
[1768894070276,12.54636768,3123.8,3123.1,13.2742414]
[1768894070484,12.54636768,3123.8,3123.1,13.85114455]
[1768894070686,12.54636768,3123.8,3123.2,12.7502414]
[1768894071509,12.54636768,3124.0,3123.2,12.7502414]
[1768894072210,0.0008012,3124.3,3123.2,12.7502414]
[1768894072211,12.54636768,3124.2,3123.2,12.7502414]
[1768894072376,12.54636768,3124.0,3123.2,12.7502414]
[1768894072575,12.54636768,3124.0,3123.1,8.10281652]
[1768894072576,12.54636768,3124.0,3123.4,12.7502414]
[1768894072776,12.54636768,3124.0,3123.5,0.524]
[1768894073671,12.54636768,3124.0,3123.5,11.91606751]
[1768894073874,12.54636768,3124.0,3123.5,12.44006751]
[1768894074589,0.0008012,3124.3,3123.5,12.44006751]
[1768894074909,12.83122388,3124.3,3123.7,11.91606751]
[1768894075819,12.83122388,3124.3,3123.6,1.56416859]
[1768894076129,12.83122388,3124.3,3123.3,12.65848997]
[1768894076278,12.83042268,3124.2,3122.7,11.91606751]
[1768894076481,12.83042268,3124.2,3123.0,15.11805948]
[1768894076713,12.83042268,3124.2,3123.1,11.91606751]
[1768894077015,12.83042268,3124.2,3123.2,0.524]
[1768894077214,12.83042268,3124.0,3123.2,0.524]
[1768894077513,12.83042268,3124.0,3123.2,12.44006751]
[1768894078920,12.83042268,3124.0,3123.2,0.524]
[1768894079222,12.83042268,3123.8,3123.2,12.44006751]
[1768894079793,12.83042268,3123.8,3123.3,11.91606751]
[1768894080494,0.001,3123.9,3123.3,13.48025827]
[1768894081615,0.001,3123.9,3123.4,11.91606751]
[1768894081912,0.0008012,3124.3,3123.5,11.91606751]
[1768894082127,0.0008012,3124.3,3123.7,11.91606751]
[1768894082332,12.83122388,3124.3,3123.7,11.91606751]
[1768894082489,12.83122388,3124.3,3123.8,0.524]
[1768894082887,0.0008012,3124.3,3123.9,11.91606751]
[1768894084994,0.0008012,3124.3,3123.9,12.44006751]
[1768894086906,12.83122388,3124.3,3123.8,1.24400675]
[1768894087165,12.83122388,3124.3,3123.8,0.524]
[1768894088090,12.83122388,3124.3,3123.8,12.44006751]
[1768894088233,12.83122388,3124.3,3123.9,13.48020734]
[1768894088429,12.83122388,3124.3,3123.9,11.91606751]
[1768894088760,12.83122388,3124.3,3123.8,0.524]
[1768894088960,12.83122388,3124.3,3123.8,12.44006751]
[1768894090104,0.0008012,3124.3,3123.8,12.44006751]
[1768894090801,0.001,3124.0,3123.8,12.44006751]
[1768894090959,0.001,3124.0,3123.9,13.48020587]
[1768894091357,0.0008012,3124.3,3124.0,11.91606751]
[1768894095659,12.83122388,3124.3,3123.9,1.56413836]
[1768894095856,6.77354478,3124.0,3123.2,11.91606751]
[1768894096083,12.83042268,3123.9,3123.0,12.44006751]
[1768894096292,12.83042268,3123.9,3123.0,15.64211199]
[1768894096489,12.83042268,3123.9,3123.0,12.44006751]
[1768894096791,12.83042268,3123.9,3123.1,11.91606751]
[1768894097402,14.11346495,3123.9,3123.1,11.91606751]
[1768894097764,12.83042268,3123.9,3123.1,12.44006751]
[1768894097961,12.83042268,3124.1,3123.1,11.91606751]
[1768894098165,12.83042268,3124.1,3123.2,0.524]
[1768894098394,12.83042268,3124.1,3123.2,12.44006751]
[1768894098689,12.83042268,3124.1,3123.2,11.91606751]
[1768894098890,12.83042268,3123.9,3123.0,15.11810364]
[1768894099074,12.83042268,3123.9,3123.1,0.524]
[1768894099874,12.83042268,3123.9,3123.1,12.44006751]
[1768894100296,12.83042268,3123.9,3123.1,15.64198139]
[1768894100597,12.83042268,3123.9,3123.2,11.91606751]
[1768894100796,14.24698918,3123.9,3123.2,11.91606751]
[1768894101294,14.24698918,3123.9,3123.1,3.20191388]
[1768894101464,14.24698918,3123.9,3123.1,15.11798139]
[1768894101796,14.24698918,3123.9,3123.1,11.91606751]
[1768894102400,14.24698918,3123.9,3123.4,0.002]
[1768894102598,12.83042268,3123.7,3123.4,0.002]
[1768894106904,0.001,3124.0,3123.4,12.26227813]
[1768894107701,12.37715773,3124.0,3123.4,12.26227813]
[1768894110404,0.001,3124.0,3123.4,12.26227813]
[1768894110616,0.001,3124.0,3123.5,12.26027813]
[1768894110814,0.0008012,3124.3,3123.5,13.80666961]
[1768894111193,12.37695893,3124.3,3123.5,13.80666961]
[1768894111914,12.37695893,3124.3,3123.6,0.524]
[1768894112112,12.37695893,3124.3,3123.6,12.78427813]
[1768894112611,12.37695893,3124.3,3123.5,1.54639148]
[1768894112812,12.37695893,3124.3,3123.5,2.07039148]
[1768894113016,12.89895893,3124.3,3123.5,1.54639148]
[1768894113219,12.89895893,3124.3,3123.5,12.26027813]
[1768894113911,12.89895893,3124.3,3123.4,0.526]
[1768894114227,12.89895893,3124.3,3123.4,15.98789509]
[1768894114420,12.89895893,3124.3,3123.4,12.26227813]
[1768894114587,0.0008012,3124.3,3123.5,13.85907552]
[1768894114914,12.37695893,3124.3,3123.5,13.85907552]
[1768894115886,12.37695893,3124.3,3123.7,0.002]
[1768894116424,12.37715773,3124.0,3123.7,0.002]
[1768894122470,0.0008012,3124.3,3123.9,12.26027813]
[1768894122827,11.92734903,3124.7,3124.0,12.40983037]
[1768894124770,11.92734903,3124.7,3123.7,0.84635367]
[1768894124971,11.92734903,3124.7,3123.7,0.526]
[1768894125136,11.92734903,3124.7,3123.7,0.002]
[1768894125755,12.20327333,3124.6,3123.7,0.002]
[1768894126055,11.92654863,3124.4,3123.5,0.524]
[1768894126250,13.1749707,3124.7,3123.4,12.41183037]
[1768894126251,0.27665323,3124.3,3123.6,12.40983037]
[1768894126450,0.0008004,3124.7,3124.0,12.40983037]
[1768894127166,0.0008004,3124.7,3124.2,12.40983037]
[1768894129255,0.001,3124.4,3124.2,12.40983037]
[1768894129852,0.001,3124.4,3124.0,12.40983037]
[1768894130070,0.001,3124.4,3123.8,12.40983037]
[1768894130375,11.92754863,3124.4,3123.9,12.40983037]
[1768894130582,11.92754863,3124.4,3123.9,12.93383037]
[1768894130977,11.92754863,3124.4,3123.9,0.524]
[1768894131183,11.92754863,3124.4,3123.8,0.524]
[1768894131379,11.92754863,3124.4,3123.7,12.41183037]
[1768894131600,13.12030349,3124.4,3123.7,0.002]
[1768894132488,13.12030349,3124.4,3123.7,12.41183037]
[1768894134653,11.92754863,3124.4,3123.7,12.41183037]
[1768894135055,11.92754863,3124.4,3123.7,12.93583037]
[1768894135686,11.92754863,3124.4,3123.7,16.13714935]
[1768894135864,11.92754863,3124.4,3123.8,11.91550305]
[1768894136889,0.001,3124.4,3123.8,11.91550305]
[1768894137085,0.001,3124.4,3123.9,13.47978162]
[1768894138164,12.51625682,3124.4,3123.9,13.47978162]
[1768894138373,12.51625682,3124.4,3123.9,11.91550305]
[1768894140086,12.51625682,3124.4,3123.7,12.44150305]
[1768894141459,0.001,3124.1,3123.7,12.44150305]
[1768894141974,0.001,3124.1,3123.7,0.526]
[1768894142165,0.001,3124.1,3123.7,12.44150305]
[1768894142357,0.001,3124.1,3123.8,13.53965336]
[1768894143209,0.001,3124.1,3123.7,0.002]
[1768894143210,12.51625682,3124.1,3123.7,0.002]
[1768894144267,12.51625682,3124.1,3123.6,3.8]
[1768894148367,12.51625682,3124.1,3123.5,11.91550305]
[1768894152018,0.001,3124.1,3123.5,11.91550305]
[1768894152516,13.03725682,3124.6,3123.6,11.91550305]
[1768894152819,12.79191694,3124.5,3123.8,11.91550305]
[1768894153115,12.51525682,3124.5,3123.8,11.91550305]
[1768894153630,12.51525682,3124.5,3123.5,11.91550305]
[1768894153829,12.51525682,3124.5,3123.6,0.524]
[1768894153996,12.51525682,3124.3,3123.6,12.43950305]
[1768894154326,0.001,3123.8,3123.6,11.91550305]
[1768894157031,0.001,3123.8,3123.4,11.91750305]
[1768894157327,0.001,3123.8,3123.4,12.44150305]
[1768894158422,0.001,3123.8,3123.4,11.91750305]
[1768894158599,0.001,3123.8,3123.5,1.89192338]
[1768894158953,0.001,3123.8,3123.5,11.91550305]
[1768894161811,0.001,3123.8,3123.4,11.91750305]
[1768894162431,0.001,3123.8,3123.5,11.91550305]
[1768894164111,0.522,3124.6,3123.5,3.20145504]
[1768894164316,12.46744894,3124.5,3123.8,12.98946692]
[1768894164511,12.19062556,3124.5,3123.8,13.51346692]
[1768894164708,0.0008004,3124.7,3123.8,13.51346692]
[1768894164922,0.2768632,3124.6,3123.8,13.51346692]
[1768894165254,12.19142596,3124.7,3124.0,12.98946692]
[1768894165438,0.27683945,3124.6,3124.0,12.98946692]
[1768894165615,12.19142596,3124.7,3123.9,1.35134669]
[1768894165944,12.19062556,3124.5,3123.8,13.51546692]
[1768894166316,0.0008004,3125.0,3123.8,6.40445854]
[1768894166538,12.19142596,3125.0,3124.0,12.98946692]
[1768894167747,12.19142596,3125.0,3124.2,12.98946692]
[1768894168051,0.0008004,3125.0,3124.2,14.34081361]
[1768894168354,12.19142596,3125.0,3124.2,1.35134669]
[1768894168559,12.19142596,3125.0,3124.1,12.98946692]
[1768894168918,12.19142596,3125.0,3124.1,16.19035818]
[1768894169840,12.19142596,3125.0,3124.1,12.98946692]
[1768894170728,12.19142596,3125.0,3123.9,13.51346692]
[1768894171125,12.19142596,3125.0,3124.0,12.98946692]
[1768894171333,13.46294868,3125.0,3124.1,12.98946692]
[1768894173342,13.46294868,3125.0,3124.1,16.19036214]
[1768894175546,12.19142596,3125.0,3124.1,16.19036214]
[1768894175948,12.19142596,3125.0,3124.1,12.98946692]
[1768894176260,12.19142596,3125.0,3124.1,16.19037435]
[1768894177256,12.19142596,3125.0,3124.1,12.98946692]
[1768894178267,0.001,3124.7,3124.1,12.98946692]
[1768894178559,12.19162556,3124.7,3124.1,14.79606605]
[1768894178726,12.19162556,3124.7,3124.1,12.98946692]
[1768894179323,12.19162556,3124.7,3124.0,1.35154669]
[1768894179527,12.19162556,3124.7,3123.8,12.99146692]
[1768894179528,12.71362556,3124.7,3123.8,12.99146692]
[1768894179746,12.71362556,3124.7,3123.8,0.002]
[1768894181240,12.19062556,3124.6,3123.8,0.002]
[1768894181440,12.19062556,3124.4,3123.8,0.002]
[1768894181636,12.19062556,3124.2,3123.8,0.002]
[1768894190672,12.19062556,3124.2,3124.1,0.002]
[1768894190961,0.522,3124.3,3123.9,11.77176056]
[1768894192036,12.96550242,3124.3,3123.9,11.77176056]
[1768894192466,14.38918892,3124.3,3123.8,0.002]
[1768894193267,14.38918892,3124.3,3123.8,12.92010024]
[1768894193466,12.96550242,3124.3,3123.8,12.92010024]
[1768894193665,0.523,3124.3,3123.8,12.92010024]
[1768894194342,13.42427813,3124.3,3123.8,12.92010024]
[1768894196469,0.523,3124.3,3123.8,12.92010024]
[1768894196669,13.42427813,3124.3,3123.8,0.002]
[1768894196870,14.76670594,3124.3,3123.8,0.002]
[1768894197372,1.86542781,3124.3,3123.8,12.92010024]